[Event "Late-Titled-Tuesday-Blitz-September-05-2023"]
[Site "Chess.com"]
[Date "2023.09.05"]
[Round "1"]
[White "dretch"]
[Black "Perecke"]
[Result "0-1"]
[WhiteElo "2870"]
[BlackElo "2475"]
[TimeControl "180+1"]
[EndTime "14:07:00 PDT"]
[Termination "Perecke won on time"]

1. d4 {[%clk 0:03:00.9]} 1... Nf6 {[%clk 0:02:58.2]} 2. c4 {[%clk 0:03:00.7]}
2... e6 {[%clk 0:02:58.1]} 3. Nc3 {[%clk 0:03:01.1]} 3... Bb4 {[%clk 0:02:58.3]}
4. Qc2 {[%clk 0:03:01.6]} 4... c5 {[%clk 0:02:57.8]} 5. dxc5 {[%clk 0:03:01.7]}
5... Nc6 {[%clk 0:02:56.3]} 6. Nf3 {[%clk 0:03:00.3]} 6... O-O {[%clk
0:02:54.4]} 7. a3 {[%clk 0:02:59.7]} 7... Bxc5 {[%clk 0:02:54]} 8. Bg5 {[%clk
0:02:59.9]} 8... h6 {[%clk 0:02:51.7]} 9. Bh4 {[%clk 0:02:58]} 9... Be7 {[%clk
0:02:41.8]} 10. Rd1 {[%clk 0:02:54.3]} 10... b6 {[%clk 0:02:40.1]} 11. e3 {[%clk
0:02:48.1]} 11... Bb7 {[%clk 0:02:40.2]} 12. Be2 {[%clk 0:02:48.6]} 12... Rc8
{[%clk 0:02:38.9]} 13. O-O {[%clk 0:02:48]} 13... Na5 {[%clk 0:02:31.8]} 14. b3
{[%clk 0:02:38]} 14... Bxa3 {[%clk 0:02:24.3]} 15. Nb5 {[%clk 0:02:37.7]} 15...
Be7 {[%clk 0:02:24.1]} 16. Nxa7 {[%clk 0:02:35.8]} 16... Ra8 {[%clk 0:02:24.7]}
17. Nb5 {[%clk 0:02:35]} 17... Nc6 {[%clk 0:02:25.4]} 18. Nd6 {[%clk 0:02:30.2]}
18... Qc7 {[%clk 0:02:18.6]} 19. Bg3 {[%clk 0:02:19.3]} 19... Nh5 {[%clk
0:01:33.1]} 20. Nxf7 {[%clk 0:02:18.7]} 20... Nxg3 {[%clk 0:01:32]} 21. Nxh6+
{[%clk 0:02:18.8]} 21... Kh8 {[%clk 0:01:24.4]} 22. Nf7+ {[%clk 0:01:04.2]}
22... Rxf7 {[%clk 0:01:16.4]} 23. hxg3 {[%clk 0:01:05.1]} 23... Kg8 {[%clk
0:01:14.3]} 24. Qd3 {[%clk 0:00:56.8]} 24... d5 {[%clk 0:01:09.9]} 25. Qg6
{[%clk 0:00:45.4]} 25... Rf6 {[%clk 0:01:04.7]} 26. Qh5 {[%clk 0:00:45.5]} 26...
dxc4 {[%clk 0:00:57.2]} 27. Bxc4 {[%clk 0:00:43.6]} 27... Ra5 {[%clk 0:00:44.7]}
28. Ng5 {[%clk 0:00:37.6]} 28... Rxg5 {[%clk 0:00:23]} 29. Qxg5 {[%clk
0:00:38.5]} 29... Ne5 {[%clk 0:00:23.4]} 30. Be2 {[%clk 0:00:31.1]} 30... Qc6
{[%clk 0:00:19.2]} 31. f3 {[%clk 0:00:24.1]} 31... Qc5 {[%clk 0:00:17]} 0-1

[Event "Late-Titled-Tuesday-Blitz-September-05-2023"]
[Site "Chess.com"]
[Date "2023.09.05"]
[Round "1"]
[White "Rinqed222"]
[Black "IamSchrodingersCat"]
[Result "0-1"]
[WhiteElo "2220"]
[BlackElo "2548"]
[TimeControl "180+1"]
[EndTime "14:07:00 PDT"]
[Termination "IamSchrodingersCat won on time"]

1. e4 {[%clk 0:02:59.9]} 1... c5 {[%clk 0:02:57.5]} 2. Nc3 {[%clk 0:02:59.7]}
2... a6 {[%clk 0:02:52.7]} 3. g3 {[%clk 0:02:58.3]} 3... b5 {[%clk 0:02:52.6]}
4. Bg2 {[%clk 0:02:57.8]} 4... Bb7 {[%clk 0:02:52.9]} 5. Nge2 {[%clk 0:02:56.2]}
5... b4 {[%clk 0:02:50.3]} 6. Nd5 {[%clk 0:02:45.1]} 6... e6 {[%clk 0:02:50.1]}
7. Ne3 {[%clk 0:02:43.7]} 7... Nf6 {[%clk 0:02:50.4]} 8. d3 {[%clk 0:02:41.9]}
8... d5 {[%clk 0:02:50.2]} 9. e5 {[%clk 0:02:30.7]} 9... Nfd7 {[%clk 0:02:49.1]}
10. f4 {[%clk 0:02:28.5]} 10... Be7 {[%clk 0:02:46]} 11. d4 {[%clk 0:02:21.7]}
11... O-O {[%clk 0:02:42.8]} 12. c3 {[%clk 0:02:19.4]} 12... a5 {[%clk
0:02:42.6]} 13. O-O {[%clk 0:02:16.2]} 13... Ba6 {[%clk 0:02:35.8]} 14. f5
{[%clk 0:02:08.4]} 14... Qb6 {[%clk 0:02:23.1]} 15. Bxd5 {[%clk 0:01:24.6]}
15... exd5 {[%clk 0:02:16.2]} 16. Nxd5 {[%clk 0:01:24.6]} 16... Qd8 {[%clk
0:02:12.1]} 17. f6 {[%clk 0:01:21.4]} 17... gxf6 {[%clk 0:02:13]} 18. Bh6 {[%clk
0:01:12.4]} 18... Kh8 {[%clk 0:00:54.5]} 19. Bxf8 {[%clk 0:00:45.5]} 19... Bxf8
{[%clk 0:00:53.7]} 20. exf6 {[%clk 0:00:38]} 20... cxd4 {[%clk 0:00:40.3]} 21.
Nxd4 {[%clk 0:00:21.8]} 21... Bxf1 {[%clk 0:00:38.3]} 22. Qxf1 {[%clk
0:00:22.7]} 22... Ne5 {[%clk 0:00:35.2]} 23. Nf4 {[%clk 0:00:13.6]} 23... bxc3
{[%clk 0:00:32.7]} 24. bxc3 {[%clk 0:00:13.6]} 24... Nbc6 {[%clk 0:00:33]} 25.
Rd1 {[%clk 0:00:13.1]} 25... Qxf6 {[%clk 0:00:30.8]} 26. Qb5 {[%clk 0:00:06.8]}
26... Nxd4 {[%clk 0:00:29.1]} 27. cxd4 {[%clk 0:00:06.9]} 27... Nf3+ {[%clk
0:00:29]} 28. Kg2 {[%clk 0:00:06]} 28... Nxd4 {[%clk 0:00:29.5]} 29. Qd5 {[%clk
0:00:05.4]} 29... Rd8 {[%clk 0:00:29.2]} 30. Qxa5 {[%clk 0:00:03.9]} 30... Be7
{[%clk 0:00:21.5]} 31. Nd5 {[%clk 0:00:03.3]} 31... Qf3+ {[%clk 0:00:21.1]} 32.
Kh3 {[%clk 0:00:03.6]} 32... Qxd5 {[%clk 0:00:19.4]} 0-1

[Event "Late-Titled-Tuesday-Blitz-September-05-2023"]
[Site "Chess.com"]
[Date "2023.09.05"]
[Round "1"]
[White "AndreiITrifan"]
[Black "Dzidzik2203"]
[Result "0-1"]
[WhiteElo "2618"]
[BlackElo "2345"]
[TimeControl "180+1"]
[EndTime "14:07:02 PDT"]
[Termination "Dzidzik2203 won on time"]

1. Nf3 {[%clk 0:02:59.5]} 1... Nf6 {[%clk 0:02:59.6]} 2. b3 {[%clk 0:02:59]}
2... d5 {[%clk 0:02:57.5]} 3. e3 {[%clk 0:02:57.5]} 3... Bg4 {[%clk 0:02:56.4]}
4. Be2 {[%clk 0:02:57]} 4... Nbd7 {[%clk 0:02:55.8]} 5. Bb2 {[%clk 0:02:56.6]}
5... e6 {[%clk 0:02:51.3]} 6. d4 {[%clk 0:02:53.3]} 6... Bd6 {[%clk 0:02:49.8]}
7. Nbd2 {[%clk 0:02:51.2]} 7... O-O {[%clk 0:02:49]} 8. O-O {[%clk 0:02:48.9]}
8... c6 {[%clk 0:02:49.1]} 9. h3 {[%clk 0:02:44]} 9... Bh5 {[%clk 0:02:47.8]}
10. c4 {[%clk 0:02:37.7]} 10... Qb8 {[%clk 0:02:46.5]} 11. Qc2 {[%clk
0:02:36.3]} 11... Re8 {[%clk 0:02:38.3]} 12. Rfe1 {[%clk 0:02:30]} 12... Bb4
{[%clk 0:02:24.2]} 13. a3 {[%clk 0:02:25.4]} 13... Bxd2 {[%clk 0:02:20.7]} 14.
Nxd2 {[%clk 0:02:26.3]} 14... Bxe2 {[%clk 0:02:19.9]} 15. Rxe2 {[%clk
0:02:27.2]} 15... e5 {[%clk 0:02:19.9]} 16. dxe5 {[%clk 0:02:22.5]} 16... Nxe5
{[%clk 0:02:19.7]} 17. e4 {[%clk 0:02:17.8]} 17... Nh5 {[%clk 0:01:54.4]} 18.
exd5 {[%clk 0:02:11.1]} 18... Nf4 {[%clk 0:01:50.7]} 19. Re4 {[%clk 0:01:50.4]}
19... Ned3 {[%clk 0:01:46.1]} 20. dxc6 {[%clk 0:01:44.4]} 20... bxc6 {[%clk
0:01:29.2]} 21. Rxe8+ {[%clk 0:00:58.7]} 21... Qxe8 {[%clk 0:01:28.8]} 22. Nf3
{[%clk 0:00:59.2]} 22... Qe4 {[%clk 0:01:19.5]} 23. Be5 {[%clk 0:00:34.8]} 23...
Nxh3+ {[%clk 0:00:57.8]} 24. gxh3 {[%clk 0:00:31]} 24... Qxf3 {[%clk 0:00:57.9]}
25. Bg3 {[%clk 0:00:26.2]} 25... Re8 {[%clk 0:00:55.1]} 26. Qd2 {[%clk
0:00:17.1]} 26... h5 {[%clk 0:00:38.1]} 27. Rd1 {[%clk 0:00:16.2]} 27... h4
{[%clk 0:00:34.2]} 28. Bh2 {[%clk 0:00:07]} 28... Qxh3 {[%clk 0:00:22.3]} 29.
Qg5 {[%clk 0:00:06.1]} 29... Ne1 {[%clk 0:00:16.8]} 0-1

[Event "Late-Titled-Tuesday-Blitz-September-05-2023"]
[Site "Chess.com"]
[Date "2023.09.05"]
[Round "1"]
[White "NeverW84M8"]
[Black "imdarealist"]
[Result "1-0"]
[WhiteElo "2629"]
[BlackElo "2316"]
[TimeControl "180+1"]
[EndTime "14:07:02 PDT"]
[Termination "NeverW84M8 won by resignation"]

1. d4 {[%clk 0:03:00.9]} 1... d5 {[%clk 0:02:57.2]} 2. c4 {[%clk 0:03:00.8]}
2... e6 {[%clk 0:02:53.7]} 3. Nc3 {[%clk 0:02:59.3]} 3... Nf6 {[%clk 0:02:53.2]}
4. cxd5 {[%clk 0:02:58.9]} 4... exd5 {[%clk 0:02:52.8]} 5. Bg5 {[%clk
0:02:52.6]} 5... c6 {[%clk 0:02:53]} 6. e3 {[%clk 0:02:37.6]} 6... Qb6 {[%clk
0:02:52.1]} 7. Qb3 {[%clk 0:02:35.2]} 7... Ne4 {[%clk 0:02:48.1]} 8. Nxe4 {[%clk
0:02:33.2]} 8... dxe4 {[%clk 0:02:48.6]} 9. Qxb6 {[%clk 0:02:27]} 9... axb6
{[%clk 0:02:49.2]} 10. Bc4 {[%clk 0:02:26]} 10... b5 {[%clk 0:02:42.1]} 11. Bb3
{[%clk 0:02:25.9]} 11... Be7 {[%clk 0:02:39.8]} 12. Bf4 {[%clk 0:02:25]} 12...
Bb4+ {[%clk 0:02:37]} 13. Kd1 {[%clk 0:02:23.1]} 13... Nd7 {[%clk 0:02:35]} 14.
Ne2 {[%clk 0:02:22.9]} 14... Nb6 {[%clk 0:02:25.3]} 15. Nc3 {[%clk 0:02:22.6]}
15... f5 {[%clk 0:02:20.1]} 16. Kc2 {[%clk 0:02:19.4]} 16... Nc4 {[%clk
0:02:04.3]} 17. f3 {[%clk 0:02:09.4]} 17... exf3 {[%clk 0:01:58.9]} 18. gxf3
{[%clk 0:02:10.3]} 18... Be6 {[%clk 0:01:59.1]} 19. Rad1 {[%clk 0:02:01.8]}
19... O-O {[%clk 0:01:56.1]} 20. d5 {[%clk 0:01:57.6]} 20... Bf7 {[%clk
0:01:51.9]} 21. dxc6 {[%clk 0:01:45.5]} 21... bxc6 {[%clk 0:01:51.3]} 22. a3
{[%clk 0:01:42.4]} 22... Bc5 {[%clk 0:01:30.9]} 23. Bxc4 {[%clk 0:01:42.2]}
23... Bxc4 {[%clk 0:01:30.7]} 24. Bd6 {[%clk 0:01:41.2]} 24... Bxd6 {[%clk
0:01:27]} 25. Rxd6 {[%clk 0:01:42.1]} 25... Rac8 {[%clk 0:01:24.3]} 26. Rhd1
{[%clk 0:01:34.6]} 26... Rf7 {[%clk 0:01:17.6]} 27. Rd8+ {[%clk 0:01:29.5]}
27... Rf8 {[%clk 0:01:17.5]} 28. Rxc8 {[%clk 0:01:28.8]} 28... Rxc8 {[%clk
0:01:17.7]} 29. Rd7 {[%clk 0:01:27.4]} 29... Kf8 {[%clk 0:01:14.2]} 30. e4
{[%clk 0:01:13.9]} 30... Be6 {[%clk 0:01:10.8]} 31. Ra7 {[%clk 0:01:12.2]} 31...
Rd8 {[%clk 0:01:02]} 32. Rc7 {[%clk 0:01:08]} 32... Rc8 {[%clk 0:01:02.3]} 33.
Rxc8+ {[%clk 0:01:07.1]} 33... Bxc8 {[%clk 0:01:03.2]} 34. Kd3 {[%clk
0:01:04.4]} 34... Ke7 {[%clk 0:01:02.4]} 35. Kd4 {[%clk 0:01:04.4]} 35... Kd6
{[%clk 0:01:01.1]} 36. e5+ {[%clk 0:01:04.4]} 36... Kc7 {[%clk 0:01:01.7]} 37.
Kc5 {[%clk 0:01:03.8]} 37... g5 {[%clk 0:00:51.1]} 38. Ne2 {[%clk 0:01:02]}
38... Be6 {[%clk 0:00:33.4]} 39. Nd4 {[%clk 0:01:01.7]} 39... Bd5 {[%clk
0:00:34.3]} 40. Nxb5+ {[%clk 0:00:56.2]} 40... Kd7 {[%clk 0:00:33.2]} 41. Nd4
{[%clk 0:00:57.1]} 41... h5 {[%clk 0:00:25.8]} 42. b4 {[%clk 0:00:50.7]} 42...
g4 {[%clk 0:00:24]} 43. fxg4 {[%clk 0:00:47.6]} 43... fxg4 {[%clk 0:00:24.9]}
44. b5 {[%clk 0:00:47.4]} 44... h4 {[%clk 0:00:23.6]} 45. bxc6+ {[%clk
0:00:47.5]} 45... Kc7 {[%clk 0:00:22.9]} 46. Kxd5 {[%clk 0:00:46.9]} 46... g3
{[%clk 0:00:21.2]} 47. hxg3 {[%clk 0:00:46.5]} 47... h3 {[%clk 0:00:21.6]} 48.
Nf3 {[%clk 0:00:46.1]} 48... h2 {[%clk 0:00:22.2]} 49. Nxh2 {[%clk 0:00:47]} 1-0

[Event "Late-Titled-Tuesday-Blitz-September-05-2023"]
[Site "Chess.com"]
[Date "2023.09.05"]
[Round "1"]
[White "chessS1r"]
[Black "PapaieDudu"]
[Result "1-0"]
[WhiteElo "2590"]
[BlackElo "2294"]
[TimeControl "180+1"]
[EndTime "14:07:03 PDT"]
[Termination "chessS1r won on time"]

1. d4 {[%clk 0:02:59.7]} 1... d5 {[%clk 0:02:58.1]} 2. c4 {[%clk 0:02:57.4]}
2... e6 {[%clk 0:02:58]} 3. Nc3 {[%clk 0:02:57.3]} 3... Nf6 {[%clk 0:02:57.9]}
4. e3 {[%clk 0:02:49.2]} 4... a6 {[%clk 0:02:52.3]} 5. b3 {[%clk 0:02:42.7]}
5... Be7 {[%clk 0:02:42.5]} 6. Bb2 {[%clk 0:02:41.5]} 6... O-O {[%clk 0:02:39]}
7. Nf3 {[%clk 0:02:40.4]} 7... b6 {[%clk 0:02:36.3]} 8. Bd3 {[%clk 0:02:31.5]}
8... Bb7 {[%clk 0:02:31.5]} 9. Qc2 {[%clk 0:02:18.1]} 9... Nbd7 {[%clk
0:02:13.1]} 10. O-O {[%clk 0:02:09.2]} 10... Rc8 {[%clk 0:02:08.3]} 11. e4
{[%clk 0:01:53.5]} 11... dxe4 {[%clk 0:01:57.7]} 12. Nxe4 {[%clk 0:01:52.4]}
12... c5 {[%clk 0:01:31.8]} 13. Rad1 {[%clk 0:01:48.1]} 13... Qe8 {[%clk
0:01:21.3]} 14. Rfe1 {[%clk 0:01:38.8]} 14... h6 {[%clk 0:01:02.5]} 15. d5
{[%clk 0:01:33.9]} 15... exd5 {[%clk 0:00:54.9]} 16. Nxf6+ {[%clk 0:01:31.4]}
16... Nxf6 {[%clk 0:00:53.2]} 17. Bxf6 {[%clk 0:01:23.3]} 17... gxf6 {[%clk
0:00:52.9]} 18. Nh4 {[%clk 0:01:23.9]} 18... dxc4 {[%clk 0:00:38.3]} 19. Bxc4
{[%clk 0:01:20.3]} 19... Kh8 {[%clk 0:00:36.7]} 20. Qd2 {[%clk 0:01:09]} 20...
Kh7 {[%clk 0:00:18.1]} 21. Bd3+ {[%clk 0:01:08.7]} 21... f5 {[%clk 0:00:14]} 22.
Nxf5 {[%clk 0:01:01.2]} 22... Bg5 {[%clk 0:00:14.5]} 23. Nd6+ {[%clk 0:00:37.3]}
23... f5 {[%clk 0:00:09.7]} 24. Qc2 {[%clk 0:00:28.1]} 24... Qc6 {[%clk
0:00:07.9]} 25. Bxf5+ {[%clk 0:00:27.4]} 25... Kg7 {[%clk 0:00:06.1]} 26. Be4
{[%clk 0:00:26.8]} 26... Qc7 {[%clk 0:00:01.7]} 27. Qc3+ {[%clk 0:00:17.5]}
27... Bf6 {[%clk 0:00:01.5]} 28. Qg3+ {[%clk 0:00:17.1]} 28... Kh8 {[%clk
0:00:01.2]} 29. Nxb7 {[%clk 0:00:10.2]} 1-0

[Event "Late-Titled-Tuesday-Blitz-September-05-2023"]
[Site "Chess.com"]
[Date "2023.09.05"]
[Round "1"]
[White "Emp3rador"]
[Black "jefferyx"]
[Result "1/2-1/2"]
[WhiteElo "2501"]
[BlackElo "3028"]
[TimeControl "180+1"]
[EndTime "14:07:04 PDT"]
[Termination "Game drawn by repetition"]

1. e4 {[%clk 0:02:56.2]} 1... c5 {[%clk 0:02:59.9]} 2. Nf3 {[%clk 0:02:54.4]}
2... e6 {[%clk 0:03:00.3]} 3. d4 {[%clk 0:02:54]} 3... cxd4 {[%clk 0:03:01.2]}
4. Nxd4 {[%clk 0:02:54.1]} 4... Nc6 {[%clk 0:03:01.9]} 5. Nc3 {[%clk 0:02:54.1]}
5... a6 {[%clk 0:03:02.6]} 6. Be3 {[%clk 0:02:53.2]} 6... Nf6 {[%clk 0:03:02.1]}
7. Qf3 {[%clk 0:02:51.4]} 7... Bb4 {[%clk 0:02:49.1]} 8. O-O-O {[%clk
0:02:46.7]} 8... Bxc3 {[%clk 0:02:49]} 9. bxc3 {[%clk 0:02:46.6]} 9... Qa5
{[%clk 0:02:47.9]} 10. Kb2 {[%clk 0:02:16.6]} 10... d5 {[%clk 0:02:48.1]} 11.
Nb3 {[%clk 0:01:56.7]} 11... Qc7 {[%clk 0:02:37.7]} 12. exd5 {[%clk 0:01:20.5]}
12... Nxd5 {[%clk 0:02:38.6]} 13. Bc5 {[%clk 0:01:20.9]} 13... b6 {[%clk
0:02:36.1]} 14. Ba3 {[%clk 0:01:14]} 14... Bb7 {[%clk 0:02:35.1]} 15. c4 {[%clk
0:00:57.3]} 15... Nde7 {[%clk 0:02:08.9]} 16. Bd6 {[%clk 0:00:51.5]} 16... Qc8
{[%clk 0:02:09.1]} 17. Bd3 {[%clk 0:00:38.8]} 17... O-O {[%clk 0:02:09]} 18. Be4
{[%clk 0:00:31.7]} 18... Re8 {[%clk 0:02:06.4]} 19. Rhe1 {[%clk 0:00:23.9]}
19... Nd8 {[%clk 0:01:37.6]} 20. Bxe7 {[%clk 0:00:08.5]} 20... Rxe7 {[%clk
0:01:38.5]} 21. Rxd8+ {[%clk 0:00:08.1]} 21... Qxd8 {[%clk 0:01:39.4]} 22. Bxb7
{[%clk 0:00:08.5]} 22... Ra7 {[%clk 0:01:40.1]} 23. Rd1 {[%clk 0:00:08.5]} 23...
Qb8 {[%clk 0:01:36.4]} 24. Be4 {[%clk 0:00:08.6]} 24... Rac7 {[%clk 0:01:34.7]}
25. Bd3 {[%clk 0:00:08]} 25... Rc8 {[%clk 0:01:30.7]} 26. g3 {[%clk 0:00:08.5]}
26... Qe5+ {[%clk 0:01:30.5]} 27. Kb1 {[%clk 0:00:08.5]} 27... a5 {[%clk
0:01:30.8]} 28. Qe4 {[%clk 0:00:08.7]} 28... Qh5 {[%clk 0:01:27.2]} 29. g4
{[%clk 0:00:08.4]} 29... Qh4 {[%clk 0:01:27.3]} 30. f4 {[%clk 0:00:08.3]} 30...
a4 {[%clk 0:01:25.4]} 31. Nd4 {[%clk 0:00:08.8]} 31... g6 {[%clk 0:01:25.7]} 32.
Nb5 {[%clk 0:00:07.6]} 32... Rd7 {[%clk 0:01:22.8]} 33. g5 {[%clk 0:00:08.1]}
33... Qxh2 {[%clk 0:01:18.5]} 34. a3 {[%clk 0:00:08.4]} 34... Qf2 {[%clk
0:01:15.8]} 35. Rh1 {[%clk 0:00:06.9]} 35... Rcd8 {[%clk 0:01:10.8]} 36. Qe1
{[%clk 0:00:05.4]} 36... Qxe1+ {[%clk 0:01:04.5]} 37. Rxe1 {[%clk 0:00:06.3]}
37... Kg7 {[%clk 0:01:05.1]} 38. Kb2 {[%clk 0:00:06.2]} 38... h6 {[%clk
0:01:05.4]} 39. Nc3 {[%clk 0:00:05.9]} 39... hxg5 {[%clk 0:01:05.7]} 40. fxg5
{[%clk 0:00:06.3]} 40... Rh8 {[%clk 0:01:06]} 41. Nxa4 {[%clk 0:00:06.4]} 41...
Rh2 {[%clk 0:01:06.5]} 42. Kb3 {[%clk 0:00:05.8]} 42... Rd4 {[%clk 0:01:06.8]}
43. Nc3 {[%clk 0:00:05.8]} 43... Rg2 {[%clk 0:01:06.2]} 44. Ne4 {[%clk
0:00:06.2]} 44... Kf8 {[%clk 0:01:01.4]} 45. Kc3 {[%clk 0:00:06.9]} 45... Rd8
{[%clk 0:01:00.4]} 46. Rb1 {[%clk 0:00:07.6]} 46... Ra8 {[%clk 0:01:01.1]} 47.
Rxb6 {[%clk 0:00:07.9]} 47... Rxa3+ {[%clk 0:01:01.4]} 48. Kd4 {[%clk
0:00:08.7]} 48... Ra7 {[%clk 0:01:01.6]} 49. Rb8+ {[%clk 0:00:08.9]} 49... Ke7
{[%clk 0:01:02.2]} 50. Nf6 {[%clk 0:00:09.4]} 50... Rxg5 {[%clk 0:01:02]} 51.
Ng8+ {[%clk 0:00:09.5]} 51... Kd6 {[%clk 0:01:02.5]} 52. c5+ {[%clk 0:00:09.9]}
52... Rxc5 {[%clk 0:01:01.3]} 53. Rd8+ {[%clk 0:00:08.9]} 53... Kc7 {[%clk
0:01:01.8]} 54. Rf8 {[%clk 0:00:08.9]} 54... Kb6 {[%clk 0:01:02.2]} 55. Rb8+
{[%clk 0:00:07.3]} 55... Kc7 {[%clk 0:01:02.6]} 56. Rf8 {[%clk 0:00:06.7]} 56...
Kb6 {[%clk 0:01:02.9]} 57. Rb8+ {[%clk 0:00:06.9]} 57... Kc7 {[%clk 0:01:03.2]}
58. Rf8 {[%clk 0:00:06.6]} 1/2-1/2

[Event "Late-Titled-Tuesday-Blitz-September-05-2023"]
[Site "Chess.com"]
[Date "2023.09.05"]
[Round "1"]
[White "SamCopeland"]
[Black "The_Machine04"]
[Result "0-1"]
[WhiteElo "2310"]
[BlackElo "2605"]
[TimeControl "180+1"]
[EndTime "14:07:05 PDT"]
[Termination "The_Machine04 won on time"]

1. e4 {[%clk 0:02:54.3]} 1... d6 {[%clk 0:02:58.1]} 2. d4 {[%clk 0:02:52.6]}
2... Nf6 {[%clk 0:02:56.1]} 3. Nc3 {[%clk 0:02:52.5]} 3... e5 {[%clk 0:02:44.5]}
4. Nf3 {[%clk 0:02:47.5]} 4... Nbd7 {[%clk 0:02:30.9]} 5. Rg1 {[%clk 0:02:46.2]}
5... c6 {[%clk 0:02:26.1]} 6. g4 {[%clk 0:02:44.1]} 6... h6 {[%clk 0:02:26.4]}
7. h4 {[%clk 0:02:43.6]} 7... exd4 {[%clk 0:02:17]} 8. Qxd4 {[%clk 0:02:30.4]}
8... Qb6 {[%clk 0:02:16.8]} 9. g5 {[%clk 0:02:19]} 9... hxg5 {[%clk 0:02:16.7]}
10. hxg5 {[%clk 0:02:19.9]} 10... Ne5 {[%clk 0:02:17]} 11. Qd1 {[%clk
0:01:43.9]} 11... Nfg4 {[%clk 0:02:16.4]} 12. Qe2 {[%clk 0:01:34.2]} 12... Nxf3+
{[%clk 0:01:22.4]} 13. Qxf3 {[%clk 0:01:33.1]} 13... Ne5 {[%clk 0:01:22.5]} 14.
Qe3 {[%clk 0:01:24.7]} 14... Rh2 {[%clk 0:01:15.7]} 15. Qxb6 {[%clk 0:01:16]}
15... axb6 {[%clk 0:01:16.6]} 16. Be2 {[%clk 0:01:14.3]} 16... b5 {[%clk
0:01:15.5]} 17. Bf4 {[%clk 0:01:11.2]} 17... Rh4 {[%clk 0:01:15.4]} 18. Bg3
{[%clk 0:01:07.3]} 18... Rh8 {[%clk 0:01:15.1]} 19. Nd1 {[%clk 0:00:48.8]} 19...
Be6 {[%clk 0:01:09.9]} 20. a3 {[%clk 0:00:47]} 20... Bc4 {[%clk 0:01:07.8]} 21.
Ne3 {[%clk 0:00:45]} 21... Bxe2 {[%clk 0:00:58.8]} 22. Kxe2 {[%clk 0:00:45.9]}
22... g6 {[%clk 0:00:59.4]} 23. Bxe5 {[%clk 0:00:40]} 23... dxe5 {[%clk
0:01:00.3]} 24. Ng4 {[%clk 0:00:39.4]} 24... Bg7 {[%clk 0:00:59.9]} 25. Rad1
{[%clk 0:00:35.3]} 25... Ke7 {[%clk 0:01:00.2]} 26. Rg3 {[%clk 0:00:29.8]} 26...
Rh4 {[%clk 0:00:52]} 27. f3 {[%clk 0:00:16.7]} 27... Rah8 {[%clk 0:00:44.6]} 28.
Rg2 {[%clk 0:00:16.6]} 28... R8h5 {[%clk 0:00:38]} 29. Ne3 {[%clk 0:00:16]}
29... Rh2 {[%clk 0:00:34.2]} 30. Kf2 {[%clk 0:00:16.1]} 30... Rxg2+ {[%clk
0:00:33.8]} 31. Kxg2 {[%clk 0:00:15.9]} 31... Rxg5+ {[%clk 0:00:34.2]} 32. Kf2
{[%clk 0:00:16.8]} 32... Rh5 {[%clk 0:00:34.6]} 33. Kg3 {[%clk 0:00:13]} 33...
Bh6 {[%clk 0:00:34.1]} 34. Ng4 {[%clk 0:00:10.1]} 34... Bf4+ {[%clk 0:00:34.4]}
35. Kg2 {[%clk 0:00:09]} 35... f5 {[%clk 0:00:34.7]} 36. exf5 {[%clk 0:00:06.5]}
36... gxf5 {[%clk 0:00:35.6]} 37. Nf2 {[%clk 0:00:06.4]} 37... Rh2+ {[%clk
0:00:35.5]} 38. Kg1 {[%clk 0:00:05.8]} 38... Rh4 {[%clk 0:00:32.7]} 39. Nd3
{[%clk 0:00:03.6]} 39... Ke6 {[%clk 0:00:32.8]} 40. Nxf4+ {[%clk 0:00:02.8]}
40... Rxf4 {[%clk 0:00:33.3]} 41. Kg2 {[%clk 0:00:03]} 41... Rd4 {[%clk
0:00:32.9]} 42. Re1 {[%clk 0:00:02.2]} 42... Rd2+ {[%clk 0:00:33]} 0-1

[Event "Late-Titled-Tuesday-Blitz-September-05-2023"]
[Site "Chess.com"]
[Date "2023.09.05"]
[Round "1"]
[White "FairChess_on_YouTube"]
[Black "maksimys18"]
[Result "1-0"]
[WhiteElo "3054"]
[BlackElo "2496"]
[TimeControl "180+1"]
[EndTime "14:07:06 PDT"]
[Termination "FairChess_on_YouTube won on time"]

1. d4 {[%clk 0:03:00.9]} 1... e6 {[%clk 0:02:59.5]} 2. Nf3 {[%clk 0:02:59.7]}
2... d5 {[%clk 0:02:59.1]} 3. c4 {[%clk 0:02:57.7]} 3... Nf6 {[%clk 0:02:57.8]}
4. Bg5 {[%clk 0:02:56.4]} 4... Be7 {[%clk 0:02:57.7]} 5. e3 {[%clk 0:02:56.1]}
5... O-O {[%clk 0:02:57.6]} 6. Qc2 {[%clk 0:02:56.4]} 6... h6 {[%clk 0:02:57.2]}
7. Bxf6 {[%clk 0:02:56.3]} 7... Bxf6 {[%clk 0:02:57.2]} 8. h4 {[%clk 0:02:55.6]}
8... c5 {[%clk 0:02:56.3]} 9. g4 {[%clk 0:02:55.3]} 9... Be7 {[%clk 0:02:30.1]}
10. g5 {[%clk 0:02:53.9]} 10... h5 {[%clk 0:02:29.7]} 11. Nc3 {[%clk 0:02:52.4]}
11... Nc6 {[%clk 0:02:28.1]} 12. O-O-O {[%clk 0:02:51.6]} 12... cxd4 {[%clk
0:02:23.6]} 13. exd4 {[%clk 0:02:50.9]} 13... Bd7 {[%clk 0:02:23]} 14. Kb1
{[%clk 0:02:40.6]} 14... Rc8 {[%clk 0:02:21.6]} 15. Be2 {[%clk 0:02:32.7]} 15...
dxc4 {[%clk 0:02:19.6]} 16. Ne5 {[%clk 0:02:31.8]} 16... Nb4 {[%clk 0:02:07]}
17. Qe4 {[%clk 0:02:22.7]} 17... Nd5 {[%clk 0:01:57.8]} 18. Bxh5 {[%clk
0:02:13.5]} 18... Nxc3+ {[%clk 0:01:53.1]} 19. bxc3 {[%clk 0:02:14.4]} 19... Ba3
{[%clk 0:01:48.9]} 20. Ka1 {[%clk 0:02:02]} 20... Bc6 {[%clk 0:01:44.7]} 21. Qf4
{[%clk 0:02:00.7]} 21... f5 {[%clk 0:01:22.2]} 22. Rh3 {[%clk 0:01:52.3]} 22...
Be4 {[%clk 0:01:09.8]} 23. Bg6 {[%clk 0:01:50.4]} 23... Qb6 {[%clk 0:00:54.9]}
24. Qd2 {[%clk 0:01:50.5]} 24... Bd6 {[%clk 0:00:45.1]} 25. Nd7 {[%clk
0:01:47.3]} 25... Qc7 {[%clk 0:00:37]} 26. Nxf8 {[%clk 0:01:45.9]} 26... Rxf8
{[%clk 0:00:37.9]} 27. Qe2 {[%clk 0:01:41.6]} 27... Bf4 {[%clk 0:00:35.6]} 28.
Qh5 {[%clk 0:01:40.8]} 28... Rd8 {[%clk 0:00:30.2]} 29. Qh7+ {[%clk 0:01:37.8]}
29... Kf8 {[%clk 0:00:30]} 30. Qh8+ {[%clk 0:01:38.4]} 30... Ke7 {[%clk
0:00:30.2]} 31. Qxg7+ {[%clk 0:01:39]} 31... Kd6 {[%clk 0:00:30.6]} 32. Qxc7+
{[%clk 0:01:39.6]} 32... Kxc7 {[%clk 0:00:30.7]} 33. Bf7 {[%clk 0:01:38.4]}
33... e5 {[%clk 0:00:30.5]} 34. g6 {[%clk 0:01:37.8]} 34... exd4 {[%clk
0:00:30.1]} 35. Rxd4 {[%clk 0:01:23.4]} 35... Be5 {[%clk 0:00:03.9]} 36. Rxd8
{[%clk 0:01:22.4]} 36... Kxd8 {[%clk 0:00:04.8]} 37. h5 {[%clk 0:01:21.8]} 37...
Bd3 {[%clk 0:00:05.3]} 38. Kb2 {[%clk 0:01:20.5]} 38... b5 {[%clk 0:00:05.8]}
39. a3 {[%clk 0:01:16.7]} 39... a5 {[%clk 0:00:05.2]} 40. h6 {[%clk 0:01:15.7]}
40... b4 {[%clk 0:00:05.8]} 41. g7 {[%clk 0:01:14.3]} 41... bxc3+ {[%clk
0:00:05.8]} 42. Ka2 {[%clk 0:01:13.7]} 42... c2 {[%clk 0:00:05.6]} 43. g8=Q+
{[%clk 0:01:13.5]} 43... Kc7 {[%clk 0:00:06.5]} 44. Rh1 {[%clk 0:01:09]} 44...
c3 {[%clk 0:00:03.7]} 45. Kb3 {[%clk 0:01:04.3]} 45... a4+ {[%clk 0:00:02.8]}
46. Kxa4 {[%clk 0:01:03.6]} 46... Kb6 {[%clk 0:00:02.4]} 47. Bc4 {[%clk
0:01:03.3]} 47... Bxc4 {[%clk 0:00:02.1]} 48. Qxc4 {[%clk 0:01:03.3]} 48... c1=Q
{[%clk 0:00:02.9]} 49. Rxc1 {[%clk 0:01:02.4]} 1-0